fUST/lending_fUST_20250120
["ID","MTS","AMOUNT","RATE_DAILY","PERIOD"]
[349662003,1737361848121,-500.0,0.00021917,3]
[349662005,1737361848137,-26146.13,0.00021917,3]
[349662007,1737361848152,-500.0,0.00021917,3]
[349662010,1737361848167,-500.0,0.00021917,3]
[349662012,1737361848183,-500.0,0.00021917,3]
[349662015,1737361848198,-500.0,0.00021917,3]
[349662018,1737361848213,-505.82,0.00021917,3]
[349662020,1737361848229,-500.0,0.00021917,3]
[349662023,1737361848244,-151.0,0.00021917,2]
[349662025,1737361848259,-151.0,0.00021917,2]
[349662028,1737361848274,-151.0,0.00021917,2]
[349662031,1737361848289,-500.0,0.00021917,3]
[349662033,1737361848304,-5511.48,0.00021917,3]
[349662036,1737361848319,-500.0,0.00021917,3]
[349662038,1737361848333,-500.0,0.00021917,3]
[349662040,1737361848343,-500.0,0.00021917,3]
[349662042,1737361848352,-3000.0,0.0002192,2]
[349662044,1737361848365,-3000.0,0.0002193,2]
[349662046,1737361848375,-151.0,0.0002193,7]
[349662048,1737361848384,-151.0,0.0002193,7]
[349662051,1737361848395,-151.0,0.0002193,7]
[349662052,1737361848404,-1038.247587,0.0002193,7]
[349662055,1737361848414,-1038.247587,0.0002193,7]
[349662057,1737361848424,-151.0,0.0002193,7]
[349662076,1737361848434,-2458.49904706,0.00021931,2]
[349662079,1737361848617,-3000.0,0.0002194,2]
[349662081,1737361848627,-1049.42712045,0.00021947,14]
[349662083,1737361848637,-3000.0,0.0002195,2]
[349662086,1737361848646,-5420.75235255,0.00021954,2]
[349662088,1737361848656,-3000.0,0.0002196,2]
[349662090,1737361848667,-302.741219,0.0002196,7]
[349662092,1737361848677,-302.741219,0.0002196,7]
[349662094,1737361848687,-151.0,0.0002196,7]
[349662096,1737361848697,-548.815398,0.0002196,7]
[349662098,1737361848706,-548.815398,0.0002196,7]
[349662100,1737361848716,-3333.36696015,0.00021969,3]
[349662101,1737361848727,-3000.0,0.0002197,2]
[349662103,1737361848737,-151.0,0.0002197,7]
[349662104,1737361848746,-222.673849,0.0002197,7]
[349662106,1737361848755,-222.673849,0.0002197,7]
[349662107,1737361848765,-305.058362,0.0002197,7]
[349662109,1737361848775,-305.058362,0.0002197,7]
[349662111,1737361848786,-1320.924226,0.0002197,7]
[349662112,1737361848795,-1320.924226,0.0002197,7]
[349662114,1737361848805,-151.0,0.0002197,7]
[349662115,1737361848814,-500.0,0.00021973,2]
[349662117,1737361848824,-603.58516909,0.00021973,2]
[349662118,1737361848834,-500.0,0.00021973,2]
[349662120,1737361848844,-512.35044576,0.00021973,2]
[349662122,1737361848854,-500.0,0.00021973,2]
[349662123,1737361848866,-502.25799347,0.00021973,2]
[349662125,1737361848876,-500.0,0.00021973,2]
[349662126,1737361848886,-500.0,0.00021973,2]
[349662128,1737361848896,-500.0,0.00021973,2]
[349662129,1737361848905,-500.0,0.00021973,2]
[349662131,1737361848914,-3000.0,0.0002198,2]
[349662132,1737361848924,-45475.39565645,0.0002199,7]
[349662134,1737361848934,-3000.0,0.0002199,2]
[349662135,1737361848943,-151.0,0.0002199,7]
[349662137,1737361848952,-151.0,0.0002199,7]
[349662139,1737361848961,-357.135752,0.0002199,7]
[349662140,1737361848970,-357.135752,0.0002199,7]
[349662142,1737361848980,-151.0,0.0002199,7]
[349662143,1737361848989,-259.56569,0.0002199,7]
[349662145,1737361848999,-151.0,0.0002199,7]
[349662147,1737361849009,-151.0,0.0002199,7]
[349662148,1737361849018,-151.0,0.0002199,7]
[349662150,1737361849027,-193.141741,0.0002199,7]
[349662152,1737361849037,-193.141741,0.0002199,7]
[349662153,1737361849046,-151.0,0.0002199,7]
[349662155,1737361849055,-151.0,0.0002199,7]
[349662157,1737361849065,-151.0,0.0002199,7]
[349662158,1737361849074,-151.0,0.0002199,7]
[349662160,1737361849084,-151.0,0.0002199,7]
[349662162,1737361849093,-151.0,0.0002199,7]
[349662163,1737361849103,-151.0,0.0002199,7]
[349662165,1737361849116,-151.0,0.0002199,7]
[349662167,1737361849127,-1000.0,0.00022,22]
[349662168,1737361849138,-1000.0,0.00022,3]
[349662170,1737361849148,-19452.7272385,0.00022,2]
[349662172,1737361849157,-15260.48639923,0.00022,7]
[349662173,1737361849167,-3000.0,0.00022,2]
[349662175,1737361849176,-151.0,0.00022,5]
[349662177,1737361849186,-151.0,0.00022,9]
[349662178,1737361849196,-151.0,0.00022,8]
[349662180,1737361849208,-151.0,0.00022,6]
[349662182,1737361849218,-151.0,0.00022,4]
[349662183,1737361849227,-151.0,0.00022,4]
[349662185,1737361849236,-151.0,0.00022,4]
[349662187,1737361849245,-151.0,0.00022,4]
[349662188,1737361849254,-151.0,0.00022,5]
[349662190,1737361849264,-151.0,0.00022,10]
[349662192,1737361849274,-151.0,0.00022,7]
[349662193,1737361849284,-151.0,0.00022,7]
[349662195,1737361849294,-151.0,0.00022,7]
[349662197,1737361849303,-151.0,0.00022,7]
[349662198,1737361849312,-500.0,0.00022,2]
[349662200,1737361849322,-500.0,0.00022,2]
[349662201,1737361849331,-500.0,0.00022,2]
[349662203,1737361849341,-500.0,0.00022,2]
[349662205,1737361849350,-500.0,0.00022,2]
[349662206,1737361849361,-467.532371,0.00022,2]
[349662208,1737361849371,-151.0,0.00022,7]
[349662210,1737361849380,-151.0,0.00022,7]
[349662211,1737361849390,-304.974152,0.00022,7]
[349662213,1737361849399,-19717.29667411,0.00022,2]
[349663889,1737362043391,161.490841,0.00013973,2]
[349663892,1737362292687,542.00985695,0.00022,120]
[349663893,1737362385119,1066.9178242,5e-05,14]
[349663897,1737362983451,161.490841,0.00013973,2]
[349663945,1737363032208,-300.15432599,0.00019034,2]
[349663947,1737363032218,-463.8901294,0.00019226,2]
[349663949,1737363032228,-277.088598,0.00019431,2]
[349663951,1737363032238,-300.0,0.00019644,2]
[349663953,1737363032248,-1215.12952365,0.00019645,2]
[349664748,1737363043082,-10188.51537245,0.00019645,2]
[349664750,1737363043092,-171.072156,0.00019687,2]
[349664752,1737363043102,-693.81660711,0.000199,2]
[349664754,1737363043111,-474.20835296,0.00020011,2]
[349664756,1737363043121,-1145.79132312,0.00020314,2]
[349664758,1737363043131,-259.65054088,0.00020314,2]
[349664760,1737363043141,-158.74,0.00020414,2]
[349664763,1737363043150,-500.0,0.00020414,2]
[349664766,1737363043161,-627.73511595,0.00020683,2]
[349664768,1737363043171,-187.98,0.00020691,2]
[349664770,1737363043180,-24900.0,0.00020701,2]
[349664772,1737363043189,-264.051,0.00020783,2]
[349664784,1737363043301,-596.255,0.000209,2]
[349664786,1737363043311,-465.46041765,0.00021012,2]
[349664788,1737363043321,-627.73511595,0.00021178,2]
[349664790,1737363043331,-420.0,0.00021398,2]
[349664792,1737363043340,-536.0,0.00021632,2]
[349664793,1737363043350,-2064.0,0.00021632,2]
[349664794,1737363043359,-2307.0,0.00021632,2]
[349664795,1737363043368,-395.0,0.00021632,2]
[349664796,1737363043378,-627.73511595,0.00021672,2]
[349664797,1737363043387,-1000.0,0.00021722,2]
[349664798,1737363043397,-945.358845,0.0002178,2]
[349664799,1737363043406,-339.911839,0.00021781,2]
[349664800,1737363043416,-216.4193628,0.00021781,2]
[349664801,1737363043425,-154.1159478,0.00021781,2]
[349664802,1737363043435,-154.1159478,0.00021781,2]
[349664803,1737363043445,-154.1159478,0.00021781,2]
[349664804,1737363043455,-2093.8,0.00021817,3]
[349664805,1737363043467,-173.42862615,0.00021817,2]
[349664806,1737363043477,-1000.0,0.00021841,2]
[349664807,1737363043487,-255.34657986,0.0002186,2]
[349664808,1737363043497,-173.42862613,0.00021863,2]
[349664809,1737363043506,-1004.506207,0.00021864,2]
[349664810,1737363043517,-1961.56005464,0.00021868,2]
[349664811,1737363043527,-1000.0,0.00021897,2]
[349664812,1737363043536,-173.42862613,0.00021908,2]
[349664813,1737363043546,-499.66058506,0.00021916,2]
[349664814,1737363043556,-500.0,0.00021916,2]
[349664815,1737363043566,-277.63825747,0.00021916,2]
[349664816,1737363043575,-500.0,0.00021916,2]
[349664817,1737363043584,-500.0,0.00021916,2]
[349664818,1737363043593,-500.0,0.00021916,2]
[349664819,1737363043602,-500.0,0.00021916,2]
[349664820,1737363043612,-500.0,0.00021916,2]
[349664821,1737363043622,-500.0,0.00021916,2]
[349664822,1737363043631,-500.0,0.00021916,2]
[349664823,1737363043641,-500.0,0.00021916,2]
[349664824,1737363043651,-254.9687383,0.00021916,2]
[349664825,1737363043661,-151.0,0.00021917,2]
[349664826,1737363043670,-151.0,0.00021917,2]
[349664827,1737363043679,-500.0,0.00021917,3]
[349664828,1737363043689,-501.60172909,0.00021917,3]
[349664829,1737363043698,-501.74571355,0.00021917,3]
[349664830,1737363043708,-501.36274624,0.00021917,3]
[349664831,1737363043717,-502.36936712,0.00021917,3]
[349664832,1737363043726,-500.0,0.00021917,3]
[349664833,1737363043736,-500.0,0.00021917,3]
[349664834,1737363043745,-564.74853457,0.00021917,3]
[349664835,1737363043754,-500.0,0.00021917,3]
[349664836,1737363043764,-579.24299282,0.00021917,3]
[349664837,1737363043774,-575.35366207,0.00021917,3]
[349664838,1737363043783,-502.79898177,0.00021917,3]
[349664839,1737363043792,-500.0,0.00021917,3]
[349664840,1737363043801,-503.73265557,0.00021917,3]
[349664841,1737363043811,-500.0,0.00021917,3]
[349664842,1737363043820,-501.75163412,0.00021917,3]
[349664843,1737363043829,-501.89090445,0.00021917,3]
[349664844,1737363043839,-501.74563648,0.00021917,3]
[349664845,1737363043848,-445.99444153,0.00021917,3]
[349664846,1737363043858,-500.0,0.00021917,3]
[349664847,1737363043867,-500.0,0.00021917,3]
[349664848,1737363043876,-500.0,0.00021917,3]
[349664849,1737363043885,-423.77604798,0.00021917,3]
[349664850,1737363043895,-500.0,0.00021917,3]
[349664851,1737363043905,-500.0,0.00021917,3]
[349664852,1737363043914,-502.13715398,0.00021917,3]
[349664853,1737363043923,-500.0,0.00021917,3]
[349664854,1737363043933,-501.31366382,0.00021917,3]
[349664855,1737363043943,-501.11381639,0.00021917,3]
[349664856,1737363043953,-503.03276632,0.00021917,3]
[349664857,1737363043963,-502.09662492,0.00021917,3]
[349664858,1737363043972,-208.94187528,0.00021917,3]
[349664859,1737363043982,-501.99234675,0.00021917,3]
[349664860,1737363043992,-504.02913143,0.00021917,3]
[349664861,1737363044002,-502.46819966,0.00021917,3]
[349664862,1737363044011,-501.36182163,0.00021917,3]
[349664863,1737363044021,-500.8246132,0.00021917,3]
[349664864,1737363044030,-500.99318999,0.00021917,3]
[349664865,1737363044039,-500.0,0.00021917,3]
[349664866,1737363044049,-500.0,0.00021917,3]
[349664867,1737363044059,-501.19345255,0.00021917,3]
[349664868,1737363044068,-500.0,0.00021917,3]
[349664869,1737363044078,-533.61086748,0.00021917,3]
[349664870,1737363044087,-500.0,0.00021917,3]
[349664871,1737363044097,-501.44706547,0.00021917,3]
[349664872,1737363044107,-504.13357422,0.00021917,3]
[349664873,1737363044116,-500.0,0.00021917,3]
[349664874,1737363044126,-500.0,0.00021917,3]
[349664875,1737363044135,-500.0,0.00021917,3]
[349664876,1737363044144,-500.0,0.00021917,3]
[349664877,1737363044155,-502.46478449,0.00021917,3]
[349664878,1737363044164,-500.0,0.00021917,3]
[349664879,1737363044174,-500.0,0.00021917,3]
[349664880,1737363044183,-165.10139446,0.00021917,3]
[349664881,1737363044193,-500.0,0.00021917,3]
[349664882,1737363044202,-500.0,0.00021917,3]
[349664883,1737363044213,-500.0,0.00021917,3]
[349664884,1737363044229,-500.0,0.00021917,3]
[349664885,1737363044242,-500.0,0.00021917,3]
[349664886,1737363044252,-502.30136159,0.00021917,3]
[349664887,1737363044261,-501.47475621,0.00021917,3]
[349664888,1737363044271,-507.44729102,0.00021917,3]
[349664889,1737363044280,-502.14395657,0.00021917,3]
[349664890,1737363044290,-501.21424012,0.00021917,3]
[349664891,1737363044300,-501.57378649,0.00021917,3]
[349664892,1737363044309,-500.0,0.00021917,3]
[349664893,1737363044319,-502.89869813,0.00021917,3]
[349664894,1737363044328,-503.35786091,0.00021917,3]
[349664895,1737363044340,-500.0,0.00021917,3]
[349664896,1737363044350,-500.0,0.00021917,3]
[349664897,1737363044359,-501.15937142,0.00021917,3]
[349664898,1737363044368,-502.05135135,0.00021917,3]
[349664899,1737363044378,-500.0,0.00021917,3]
[349664900,1737363044387,-500.0,0.00021917,3]
[349664901,1737363044397,-500.0,0.00021917,3]
[349664902,1737363044407,-502.47883015,0.00021917,3]
[349664903,1737363044417,-500.0,0.00021917,3]
[349664904,1737363044426,-500.0,0.00021917,3]
[349664905,1737363044435,-500.0,0.00021917,3]
[349664906,1737363044445,-500.0,0.00021917,3]
[349664907,1737363044455,-500.0,0.00021917,3]
[349664908,1737363044465,-501.51787242,0.00021917,3]
[349664909,1737363044478,-500.0,0.00021917,3]
[349664910,1737363044487,-501.10364396,0.00021917,3]
[349664911,1737363044497,-500.0,0.00021917,3]
[349664912,1737363044506,-500.0,0.00021917,3]
[349664913,1737363044515,-500.0,0.00021917,3]
[349664914,1737363044525,-500.0,0.00021917,3]
[349664915,1737363044534,-500.0,0.00021917,3]
[349664916,1737363044545,-500.0,0.00021917,3]
[349664917,1737363044556,-502.16569693,0.00021917,3]
[349664918,1737363044568,-500.0,0.00021917,3]
[349664919,1737363044577,-500.0,0.00021917,3]
[349664920,1737363044587,-504.80162702,0.00021917,3]
[349664921,1737363044597,-500.0,0.00021917,3]
[349664922,1737363044606,-503.46073498,0.00021917,3]
[349664923,1737363044615,-500.0,0.00021917,3]
[349664924,1737363044625,-500.0,0.00021917,3]
[349664925,1737363044635,-500.0,0.00021917,3]
[349664926,1737363044645,-500.0,0.00021917,3]
[349664927,1737363044654,-500.0,0.00021917,3]
[349664928,1737363044664,-151.0,0.00021917,2]
[349664929,1737363044673,-500.0,0.00021917,3]
[349664930,1737363044683,-500.0,0.00021917,3]
[349664931,1737363044692,-500.0,0.00021917,3]
[349664932,1737363044701,-500.0,0.00021917,3]
[349664933,1737363044710,-500.0,0.00021917,3]
[349664934,1737363044720,-500.0,0.00021917,3]
[349664935,1737363044729,-500.0,0.00021917,3]
[349664936,1737363044738,-500.0,0.00021917,3]
[349664937,1737363044748,-500.0,0.00021917,3]
[349664938,1737363044757,-500.0,0.00021917,3]
[349664939,1737363044766,-500.0,0.00021917,3]
[349664940,1737363044776,-500.0,0.00021917,3]
[349664941,1737363044786,-500.29942088,0.00021917,3]
[349664942,1737363044795,-500.0,0.00021917,3]
[349664943,1737363044804,-500.0,0.00021917,3]
[349664944,1737363044813,-1924.65,0.00021917,3]
[349664945,1737363044823,-500.0,0.00021917,3]
[349664946,1737363044833,-500.0,0.00021917,3]
[349664947,1737363044842,-500.0,0.00021917,3]
[349664948,1737363044854,-500.0,0.00021917,3]
[349664949,1737363044866,-500.0,0.00021917,3]
[349664950,1737363044957,-500.0,0.00021917,3]
[349664951,1737363044967,-500.0,0.00021917,3]
[349664952,1737363044979,-500.0,0.00021917,3]
[349664953,1737363044989,-372.74747842,0.00021917,3]
[349664954,1737363044998,-501.64314676,0.00021917,3]
[349664955,1737363045007,-500.0,0.00021917,3]
[349664956,1737363045017,-517.98594403,0.00021917,3]
[349664957,1737363045026,-500.0,0.00021917,3]
[349664958,1737363045035,-500.0,0.00021917,3]
[349664959,1737363045045,-500.0,0.00021917,3]
[349664960,1737363045055,-500.0,0.00021917,3]
[349664961,1737363045065,-500.0,0.00021917,3]
[349664962,1737363045077,-500.0,0.00021917,3]
[349664963,1737363045088,-500.0,0.00021917,3]
[349664964,1737363045097,-500.0,0.00021917,3]
[349664965,1737363045106,-500.0,0.00021917,3]
[349664966,1737363045115,-500.0,0.00021917,3]
[349664967,1737363045124,-500.0,0.00021917,3]
[349664968,1737363045134,-500.0,0.00021917,2]
[349664969,1737363045143,-500.0,0.00021917,3]
[349664970,1737363045152,-501.0516362,0.00021917,3]
[349664971,1737363045162,-500.0,0.00021917,3]
[349664972,1737363045172,-500.0,0.00021917,3]
[349664973,1737363045181,-500.0,0.00021917,3]
[349664974,1737363045190,-188.0,0.00021917,2]
[349664975,1737363045199,-500.0,0.00021917,3]
[349664976,1737363045209,-500.0,0.00021917,3]
[349664977,1737363045218,-500.0,0.00021917,3]
[349664978,1737363045227,-500.0,0.00021917,3]
[349664979,1737363045237,-500.0,0.00021917,3]
[349664980,1737363045246,-500.0,0.00021917,3]
[349664981,1737363045255,-500.0,0.00021917,3]
[349664982,1737363045264,-500.0,0.00021917,3]
[349664983,1737363045274,-500.0,0.00021917,3]
[349664984,1737363045283,-500.0,0.00021917,3]
[349664985,1737363045293,-500.0,0.00021917,3]
[349664986,1737363045302,-500.0,0.00021917,3]
[349664987,1737363045310,-500.0,0.00021917,3]
[349664988,1737363045319,-151.0,0.00021917,2]
[349664989,1737363045328,-503.02264013,0.00021917,3]
[349664990,1737363045338,-500.0,0.00021917,3]
[349664991,1737363045348,-500.0,0.00021917,3]
[349664992,1737363045357,-500.0,0.00021917,3]
[349664993,1737363045367,-504.96019955,0.00021917,3]
[349664994,1737363045375,-500.0,0.00021917,3]
[349664996,1737363045384,-500.0,0.00021917,3]
[349664997,1737363045394,-500.0,0.00021917,3]
[349664998,1737363045403,-500.0,0.00021917,3]
[349665000,1737363045413,-500.0,0.00021917,3]
[349665002,1737363045422,-500.0,0.00021917,3]
[349665004,1737363045431,-504.70023193,0.00021917,3]
[349665006,1737363045440,-500.0,0.00021917,3]
[349665008,1737363045449,-503.98976901,0.00021917,3]
[349665010,1737363045458,-501.12604377,0.00021917,3]
[349665012,1737363045468,-500.0,0.00021917,3]
[349665014,1737363045481,-500.0,0.00021917,3]
[349665016,1737363045490,-500.0,0.00021917,3]
[349665018,1737363045500,-502.47658975,0.00021917,3]
[349665020,1737363045510,-500.0,0.00021917,3]
[349665022,1737363045520,-501.4970045,0.00021917,3]
[349665025,1737363045530,-500.0,0.00021917,2]
[349665028,1737363045539,-151.0,0.00021917,2]
[349665031,1737363045548,-151.0,0.00021917,2]
[349665033,1737363045559,-501.00986453,0.00021917,3]
[349665035,1737363045568,-500.0,0.00021917,3]
[349665037,1737363045577,-801.81,0.00021917,3]
[349665039,1737363045586,-151.0,0.00021917,2]
[349665041,1737363045595,-151.0,0.00021917,2]
[349665044,1737363045605,-501.71558703,0.00021917,3]
[349665047,1737363045614,-504.61292615,0.00021917,3]
[349665050,1737363045622,-611.87,0.00021917,3]
[349665053,1737363045632,-501.70490479,0.00021917,3]
[349665056,1737363045641,-570.63792831,0.00021917,3]
[349665059,1737363045650,-151.0,0.00021917,2]
[349665061,1737363045661,-151.0,0.00021917,2]
[349665064,1737363045671,-500.0,0.00021917,3]
[349665067,1737363045680,-503.33217828,0.00021917,3]
[349665070,1737363045689,-500.0,0.00021917,3]
[349665073,1737363045699,-501.52818199,0.00021917,3]
[349665076,1737363045708,-500.0,0.00021917,3]
[349665079,1737363045717,-500.0,0.00021917,3]
[349665082,1737363045726,-500.0,0.00021917,3]
[349665084,1737363045735,-500.0,0.00021917,3]
[349665086,1737363045744,-500.0,0.00021917,3]
[349665088,1737363045753,-500.0,0.00021917,3]
[349665090,1737363045762,-702.35,0.00021917,3]
[349665092,1737363045771,-500.0,0.00021917,3]
[349665094,1737363045780,-500.0,0.00021917,3]
[349665096,1737363045790,-568.89,0.00021917,3]
[349665098,1737363045799,-501.60590927,0.00021917,3]
[349665100,1737363045809,-307.93864297,0.00021917,3]
[349665102,1737363045818,-503.50060274,0.00021917,3]
[349665104,1737363045827,-505.29623859,0.00021917,3]
[349665106,1737363045836,-503.66451759,0.00021917,3]
[349665108,1737363045846,-500.0,0.00021917,3]
[349665110,1737363045855,-151.0,0.00021917,2]
[349665112,1737363045864,-705.02,0.00021917,3]
[349665114,1737363045873,-152.251988,0.00021917,2]
[349665116,1737363045882,-500.0,0.00021917,3]
[349665118,1737363045891,-500.0,0.00021917,3]
[349665120,1737363045901,-500.0,0.00021917,3]
[349665122,1737363045911,-500.0,0.00021917,3]
[349665124,1737363045920,-501.41700292,0.00021917,3]
[349665126,1737363045929,-500.0,0.00021917,3]
[349665128,1737363045939,-500.0,0.00021917,3]
[349665130,1737363045948,-500.0,0.00021917,3]
[349665132,1737363045957,-500.0,0.00021917,3]
[349665134,1737363045967,-151.0,0.00021917,2]
[349665136,1737363045976,-151.0,0.00021917,2]
[349665138,1737363045985,-501.02080575,0.00021917,3]
[349665140,1737363045995,-500.0,0.00021917,3]
[349665142,1737363046004,-500.0,0.00021917,3]
[349665144,1737363046013,-500.0,0.00021917,3]
[349665146,1737363046022,-498.92054254,0.00021917,3]
[349665148,1737363046031,-500.0,0.00021917,3]
[349665150,1737363046040,-500.0,0.00021917,3]
[349665152,1737363046049,-500.0,0.00021917,3]
[349665154,1737363046059,-500.0,0.00021917,3]
[349665156,1737363046068,-500.0,0.00021917,3]
[349665158,1737363046077,-151.0,0.00021917,2]
[349665160,1737363046086,-500.0,0.00021917,3]
[349665162,1737363046095,-151.0,0.00021917,2]
[349665164,1737363046105,-724.8,0.00021917,3]
[349665166,1737363046114,-500.0,0.00021917,3]
[349665168,1737363046123,-500.0,0.00021917,3]
[349665170,1737363046132,-500.0,0.00021917,3]
[349665172,1737363046141,-486.18651259,0.00021917,3]
[349665174,1737363046151,-500.0,0.00021917,3]
[349665176,1737363046161,-500.0,0.00021917,3]
[349665178,1737363046170,-500.0,0.00021917,3]
[349665180,1737363046180,-500.0,0.00021917,3]
[349665182,1737363046189,-500.0,0.00021917,3]
[349665184,1737363046198,-500.0,0.00021917,3]
[349665186,1737363046208,-500.0,0.00021917,3]
[349665188,1737363046217,-500.0,0.00021917,3]
[349665190,1737363046226,-500.0,0.00021917,3]
[349665191,1737363046236,-500.0,0.00021917,3]
[349665192,1737363046245,-500.0,0.00021917,3]
[349665193,1737363046255,-500.0,0.00021917,3]
[349665194,1737363046264,-500.0,0.00021917,3]
[349665195,1737363046274,-500.0,0.00021917,3]
[349665196,1737363046283,-225.05811873,0.00021917,3]
[349665197,1737363046292,-503.91749604,0.00021917,3]
[349665198,1737363046302,-500.82488194,0.00021917,3]
[349665199,1737363046311,-250.07640107,0.00021917,3]
[349665200,1737363046320,-500.0,0.00021917,3]
[349665201,1737363046330,-500.0,0.00021917,3]
[349665202,1737363046339,-500.0,0.00021917,3]
[349665203,1737363046348,-151.0,0.00021917,2]
[349665204,1737363046358,-151.0,0.00021917,2]
[349665214,1737363046444,-151.0,0.00021917,2]
[349665216,1737363046453,-151.0,0.00021917,2]
[349665218,1737363046463,-503.19229736,0.00021917,3]
[349665220,1737363046477,-695.6,0.00021917,3]
[349665222,1737363046488,-334.12129499,0.00021917,3]
[349665224,1737363046498,-191.4726222,0.00021917,3]
[349665226,1737363046507,-561.34017114,0.00021917,3]
[349665228,1737363046516,-500.95958682,0.00021917,3]
[349665231,1737363046527,-151.0,0.00021917,2]
[349665233,1737363046537,-151.0,0.00021917,2]
[349665235,1737363046547,-500.0,0.00021917,3]
[349665237,1737363046556,-500.0,0.00021917,3]
[349665239,1737363046566,-500.0,0.00021917,3]
[349665241,1737363046575,-500.0,0.00021917,3]
[349665243,1737363046585,-500.0,0.00021917,3]
[349665245,1737363046594,-500.0,0.00021917,3]
[349665247,1737363046604,-500.0,0.00021917,3]
[349665249,1737363046613,-464.224272,0.00021917,2]
[349665251,1737363046622,-464.224272,0.00021917,2]
[349665253,1737363046632,-500.0,0.00021917,3]
[349665255,1737363046642,-464.224272,0.00021917,2]
[349665257,1737363046651,-500.97165592,0.00021917,3]
[349665259,1737363046662,-464.224272,0.00021917,2]
[349665261,1737363046671,-500.0,0.00021917,3]
[349665263,1737363046680,-500.0,0.00021917,3]
[349665265,1737363046690,-500.0,0.00021917,3]
[349665267,1737363046703,-1071.839381,0.00021917,2]
[349665269,1737363046712,-1071.839381,0.00021917,2]
[349665271,1737363046722,-500.96551161,0.00021917,3]
[349665273,1737363046732,-500.0,0.00021917,3]
[349665275,1737363046741,-555.03,0.00021917,3]
[349665277,1737363046750,-151.144195,0.00021917,2]
[349665279,1737363046759,-500.0,0.00021917,3]
[349665281,1737363046769,-500.0,0.00021917,3]
[349665283,1737363046778,-500.0,0.00021917,3]
[349665285,1737363046787,-500.0,0.00021917,3]
[349665287,1737363046797,-500.0,0.00021917,3]
[349665289,1737363046806,-259.33654,0.00021917,2]
[349665291,1737363046815,-502.521081,0.00021917,3]
[349665293,1737363046824,-500.0,0.00021917,3]
[349665295,1737363046833,-205.71627,0.00021917,2]
[349665297,1737363046842,-205.71627,0.00021917,2]
[349665299,1737363046852,-229.90103744,0.00021917,3]
[349665301,1737363046861,-500.0,0.00021917,3]
[349665303,1737363046870,-205.71627,0.00021917,2]
[349665305,1737363046879,-151.0,0.00021917,2]
[349665307,1737363046889,-205.71627,0.00021917,2]
[349665308,1737363046898,-151.0,0.00021917,2]
[349665310,1737363046911,-500.0,0.00021917,3]
[349665312,1737363046920,-503.37595913,0.00021917,3]
[349665314,1737363046929,-500.0,0.00021917,3]
[349665316,1737363046939,-500.0,0.00021917,3]
[349665318,1737363046949,-512.04760966,0.00021917,3]
[349665320,1737363046959,-244.64228105,0.00021917,3]
[349665322,1737363046968,-500.0,0.00021917,3]
[349665323,1737363046979,-500.0,0.00021917,3]
[349665324,1737363046988,-502.03527858,0.00021917,3]
[349665326,1737363046997,-501.41119701,0.00021917,3]
[349665328,1737363047006,-500.0,0.00021917,3]
[349665330,1737363047016,-500.0,0.00021917,3]
[349665333,1737363047025,-500.0,0.00021917,3]